{"text_format":"1","workbook":"xlsx","n_sheets":13,"sheets":["Instructions ","Order","Hedging","Bare Root","Containerized","Ornamental Potted","Wild Flowers","Apple","Pear","Plum","Other Fruit","Misc Sales","Christmas Trees"],"not_rendered":{"charts":0,"images":7,"macros":1,"external_links":0,"defined_names":1,"comments":0,"pivot_tables":0},"unopened":[],"bounds":{"document_bytes":16777216,"sheet_cells":100000,"rows_first":2000,"rows_last":500,"rows_between":2000,"halvings":0,"cell_chars":16384,"cell_head_chars":4096},"cells_cut":0,"cells_raw":0,"read":"whole","date_system":"1900"}

{"sheet":"Instructions ","index":0,"n_rows":10,"n_cols":1,"rows_kept":10,"cut":false,"hidden":false,"merged":[[1,0,1,5],[2,0,2,5],[3,0,3,5]]}
["How to use this spreadsheet"]
["This spreadsheet enables you to generate an order by selecting the items you need from the relevant worksheet"]
["All categories are included EXCEPT Christmas Trees, which are only available near Christmas by visiting the nursery or occasionally "]
["at local events."]
[]
["Before you start, SAVE THE SPREADSHEET on your computer somewhere, then have a browse around it to see what it's all about! Note - There are three buttons on the Order sheet.  They are explained later.    "]
["To order Hedging, Bare Root, Containerized and Ornamental Potted trees and shrubs:                                                                                        For the pruposes of clarity of this explanation, I'll use Hedging and Hawthorn as examples.  So, select the Hedging sheet.  If it's not visible, scroll down to Hawthorn (row 17!).  Assuming you want 40-60cm plants, click on the price cell (row 17, column D). A user form will appear with the details of the item, the price, a box to enter the number to order, and a total cost.  Assuming you need 50 plants, type 50 in the box.  The total cost will now appear.  Click the OK button.   Now go to the \"Order\" sheet - You'll see that the item you've just ordered has appeared.  Now go and order some more Items - You'll see that they appear on the order sheet.  A total cost for the order is also present.  Wild flowers are similar, just ckick on the relevant Price cell.  Fruit trees are different in that you'll click on the relevant \"Number Available at Height (ft)\" entry - You cannot order anything in fruit trees where there are none available - You'll have to ring Colin and see if He can get them.  Similarly, you cannot order more than the number available.   I suggest you try ordering some fruit trees:  The items will be added to your order sheet."]
["You can also try to break it - try ordering a negative number , or leave the No Off box blank, or in fruit trees, order more than those available!"]
["If you were going to place this order, you'd fill in your details (Name, address, post-code) on the order sheet,  and either print the order (click the \"Print Order\" button) and post it, or click the \"Save as PDF\" button and e-mail the PDF to \"orders@torminalis.co.uk\" .  If for some reason you wanted to save the whole spreadsheet, do it BEFORE you click the \"Save as PDF\" button.  This is NOT recommended - it's better to download a new copy from the website, since it will always be up-to-date.   Similarly, the \"Clear Order\" button is primarily there to enable you to clear it all down if you cock it up, (or if you actually want to make an order after doing this test example) - It's NOT intended that you just save the spreadsheet and use \"Clear Order\" the next time you want to make an order - Things may well have changed on the web-site!"]
["Since this is a test however, unless you need to actually do an order, click \"File Close\" and click \"Don't Save\" when it asks. Then delete it, and any pdf you've saved (it'll be in the same folder where you saved the spreadsheet.)"]

{"sheet":"Order","index":1,"n_rows":8,"n_cols":7,"rows_kept":8,"cut":false,"hidden":false,"merged":[[2,1,2,4],[2,5,2,6],[2,7,2,8],[0,1,0,4],[0,6,0,8],[1,1,1,4],[1,5,1,6],[1,7,1,8],[5,5,5,6],[5,7,5,8],[3,1,3,4],[3,5,3,6],[3,7,3,8],[4,1,4,4],[4,5,4,6],[4,7,4,8]]}
[9,"Torminalis Horticultural Services",null,null,null,null,"Order Form"]
[9,"Central Beds Council Depot,",null,null,null,"Name"]
[null,"Clophill Road,",null,null,null,"Address Line 1"]
[null,"Maulden.",null,null,null,"Address Line 2"]
[null,"Beds.    MK45 2AF",null,null,null,"Town"]
[null,null,null,null,null,"County & Post Code"]
["Please Supply the Following items:"]
["Item","No Off","Price Each","Total"]

{"sheet":"Hedging","index":2,"n_rows":27,"n_cols":9,"rows_kept":27,"cut":false,"hidden":false,"merged":[[0,0,0,7],[1,2,1,7]]}
["Hedging"]
[null,null,"Tree Height in cm"]
["Common Name","Latin","40-60","60-90","90-120","120-150","150-180","180-210","210+"]
["Alder Buckthorn","Frangula alnus",0.75,1.1000000000000001]
["Beech","Fagus sylvatica",0.75,0.9]
["Blackthorn","Prunus spinosa",0.55000000000000004,0.65]
["Buckthorn","Rhamnus cathartica",0.75,0.9]
["Cherry Plum","Prunus cerasifera",0.75,0.9]
["Copper Beech","Fagus sylvatica f. purpurea",0.85,1]
["Crab Apple","Malus sylvestris",0.75,0.9]
["Dog Rose","Rosa canina",0.75,0.9]
["Dogwood","Cornus sanguinea",0.75,0.75]
["Elder","Sambucus nigra",0.75,0.9]
["Field Maple","Acer campestre",0.75,0.9,4.2,7,13]
["Field rose","Rosa arvensis",0.75,0.9]
["Guilder Rose","Viburnum opulus",0.9,1]
["Hawthorn","Crataegus monogyna",0.55000000000000004,0.65]
["Hazel (Cob Nut)","Corylus avellana ",1,1.4,7,13,24]
["Hazel (Hazel Nut)","Corylus avellana ",0.75,0.9]
["Holly","Ilex aquifolium",4.9000000000000004,5.6]
["Hornbeam","Carpinus betulus",0.75,0.9]
["Osier","Salix viminalis",2.8,4.2]
["Spindle","Euonymus europaeus",0.75,0.9]
["Sweet Chestnut","Castanea sativa",0.75,0.9]
["Wayfaring Tree","Viburnum lantana",0.85,1,1.4]
["Wild Privet","Ligustrum vulgare",0.75,0.75]
["Yew","Taxus baccata",4.9000000000000004,10.4]

{"sheet":"Bare Root","index":3,"n_rows":47,"n_cols":13,"rows_kept":47,"cut":false,"hidden":false,"merged":[[0,0,0,7],[1,2,1,7]]}
["Bare Root Trees and shrubs"]
[null,null,"Tree Height in cm"]
["Common Name","Latin Name","40-60","60-90","90-120","120-150","150-180","180-210","210+"]
["Alder","Alnus glutinosa",0.75,1.1000000000000001,7,13,27.5,44,55]
["Aspen","Populus tremula",1.4,2.8,4.2,13,24]
["Beech","Fagus sylvatica",0.75,0.9,13,24,27.5,44,55]
["Bird Cherry","Prunus padus",0.75,0.9,10.4,13,27.5,null,55]
["Blackthorn","Prunus spinosa",0.75,0.9,10.4,13,27.5]
["Buckthorn","Rhamnus cathartica",0.75,0.9,7,13]
["Copper Beech","Fagus sylvatica Purpurea",0.85,1,13,24,27.5,44,55]
["Crab Apple","Malus sylvestris",0.75,0.9,10.4,13,27.5,44,55]
["Crack Willow","Salis fragilis",2.8,4.2,7,13,null,null,55]
["Dog Rose","Rosa canina",0.75,0.9,7,13]
["Dogwood","Cornus sanguinea",0.75,0.9,7,13,24,33]
["Downy Birch","Betula pubescens",0.75,0.9,7,13,27.5,44,55]
["Elder","Sambucus nigra",0.75,0.9,7]
["English Oak","Quercus robur",0.75,0.9,7,13,27.5,44,55]
["Field Maple","Acer campestre",0.75,0.9,4.2,7,13,44,55]
["Field Rose","Rosa arvensis",0.75,0.9,7]
["Gean Wild Cherry","Prunus avium",0.75,0.9,10.4,13,27.5,null,55]
["Goat Willow","Salix caprea",1.4,2.8,4.2,13,27.5]
["Grey Willow","Salix cinerea",1.4,2.8,4.2,13,27.5]
["Guelder Rose","Viburnum opulus",0.9,1,7,13,24]
["Hawthorn","Crataegus monogyna",0.55000000000000004,0.65,2.8,7]
["Hazel","Corylus avellana",0.75,0.9,7,13,24,33]
["Holly","Ilex aquifolium",4.9000000000000004,5.6]
["Honeysuckle","Lonicera periclymenum",4.9000000000000004,5.6]
["Hornbeam","Carpinus betulus",0.75,0.75,10.4,13,27.5,44,55]
["Horse Chestnut","Aesulus hippocastanum",0.75,0.9,7,13,27.5,44,55]
["Large-leaved Lime","Tilia platyphyllos",0.75,0.9,13,24,33,44,55]
["Manna Ash","Fraxinus ornus",0.75,0.9,13,24,27.5,44,55]
["Midland Hawthorn","Crataegus laevigata",0.75,0.9,4.2,7.8]
["Native Black Poplar","Populus nigra betulifolia",1.4,2.8,4.2,13,24,44,55]
["Norway Maple","Acer platanoides",0.75,0.9,7,13,27.5,44,55]
["Osier","Salix viminalis",2.8,4.2,7,13,27.5]
["Rowan Mountain Ash","Sorbus aucuparia",0.75,0.9,10.4,24,33,44,55]
["Sessile Oak","Quescus petrae",0.75,0.9,10.4,24,4.2,44,55]
["Silver Birch","Betula pendula",0.75,0.9,7,13,24,33,55]
["Small-leaved Lime","Tilia cordata",0.75,0.9,13,24,33,44,55]
["Spindle","Euonymus europaeus",0.75,0.9,7,13,33]
["Sweet Chestnut","Castanea sativa",0.9,1.1000000000000001,7,13,27.5,44,55,null,null,null,"Silver Birch"]
["Wayfaring Tree","Viburnum lantana",0.9,1,7,13,24]
["White Willow","Salix alba",2.8,4.2,7,13,27.5,44,55]
["Whitebeam","Sorbus aria",0.75,5.6,10.4,13,24,44,55]
["Wild privet","Ligustrum vulgare",0.75,0.9,7]
["Wild Service Tree","Sorbus torminalis",7,10.4,13,33,33,44]
["Yew","Taxus baccata",7,10.4,13,24,33,44]

{"sheet":"Containerized","index":4,"n_rows":52,"n_cols":9,"rows_kept":52,"cut":false,"hidden":false,"merged":[[0,0,0,7],[1,2,1,7]]}
["Containerized Trees, shrubs and hedging"]
[null,null,"Tree Height in cm"]
["Common Name","Latin Name","40-60 2 L.","60-90 3 L.","90-120 4&5 L.","120-150","120-180","180-210","210-240 +"]
["Alder","Alnus glutinosa",4,6,10,20,30,40,50]
["Aspen","Populus tremula",4,5,10,20,30,40,50]
["Beech","Fagus sylvatica",1.5,3,10,20,30,40,50]
["Bird Cherry","Prunus padus",4,5,10,20,30,40,50]
["Black Pine","Pinus nigra",4,6,10,20]
["Blackthorn","Prunus spinosa",4,5,6]
["Cherry Plum","Prunus cerasifera",4,5,6]
["Common Box","Buxus sempervirens",4,6,10]
["Copper Beech","Fagus sylvatica Purpurea",4,5,10,20,30,40,50]
["Crab Apple","Malus sylvestris",4,5,10,20,30,40,50]
["Dog Rose","Rosa canina",4,5,6]
["Dogwood","Cornus sanguinea",4,6,6,10,20,30]
["Downy Birch","Betula pubescens",4,6,10,20,30,40,50]
["English Oak","Quercus robur",4,6,10,20,30,40,50]
["Field Maple","Acer campestre",4,6,10,20,30,40,50]
["Field Rose","Rosa arvensis",4,5,6]
["Gean Wild Cherry","Prunus avium",4,5,10,20,30,40,50]
["Goat Willow","Salix caprea",2,5,3,10,30]
["Grey Willow","Salix cinerea",2,5,3,10,30]
["Guelder Rose","Viburnum opulus",4,5,10,20,30,40]
["Hawthorn","Crataegus monogyna",1.5,2,6,8]
["Hazel","Corylus avellana",4,6,6,10,20,30]
["Holly","Ilex aquifolium",4,5,10,25]
["Honeysuckle","Lonicera periclymenum",4,5,10,20,30,40]
["Hornbeam","Carpinus betulus",4,6,10,20,30,40,50]
["Horse Chestnut","Aesulus hippocastanum",4,6,10,20,30,40,50]
["Japanese Maple","Acer palmatum",5,10,30,40]
["Large-leaved Lime","Tilia platyphyllos",4,6,10,20,30,40,50]
["Manna Ash","Fraxinus ornus",1.5,3,10,20,30,40]
["Maritime Pine","Pinus pinaster",4,6,10,20,30]
["Midland Hawthorn","Crataegus laevigata",1.5,3,6,8]
["Native Black Poplar","Populus nigra betulifolia",4,5,10,20,30,40,50]
["Norway Maple","Acer platanoides",4,6,10,20,30,40,50]
["Red Japanese Maple","Acer palmat 'Atropurpureum'",5,10,30,40]
["Red Oak","Quercus rubra",4,6,10,20,30]
["Rowan Mountain Ash","Sorbus aucuparia",4,6,10,20,30,40,50]
["Scots Pine","Pinus sylvestris",4,6,10,20,null,null,50]
["Sessile Oak","Quescus petraea",4,6,10,20,30,40,50]
["Silver Birch","Betula pendula",4,6,10,20,30,40,50]
["Small-leaved Lime","Tilia cordata",4,6,10,20,30,40,50]
["Spindle","Euonymus europaeus",4,5,6]
["Swedish Whitebeam","Sorbus intermedia",4,6,10,20,30,40,50]
["Sweet Chestnut","Castanea sativa",4,6,10,20,30,40,50]
["Wayfaring Tree","Viburnum lantana",4,"0.66.0",10,20,30,40]
["Whitebeam","Sorbus aria",4,6,6,10,20,30]
["Wild Privet","Ligustrum vulgare",4,5]
["Wild Service Tree","Sorbus torminalis",5,10,20,30,40]
["Wych Elm","Ulmus glabra",4,6,10,20,30,40,50]
["Yew","Taxus baccata",5,10,20,30,40]

{"sheet":"Ornamental Potted","index":5,"n_rows":91,"n_cols":8,"rows_kept":91,"cut":false,"hidden":false,"merged":[[1,2,1,7],[0,0,0,7]]}
["Ornamental Potted Trees and Shrubs"]
[null,null,"Pot size (Litres)"]
["Common Name","Latin",2,3,4,5,7.5,10]
["Bachelor's Buttons","Kerria japonica ‘Pleniflora’",5]
["Baggesen’s Gold Honeysuckle (hedging)","Lonicera nitida ‘Baggesen’s Gold’",4.5,4.5]
["Bamboo","Arundinarea species",3.5,5,5]
["Bay","Laurus nobilis",4.5,4.5]
["Bearberry Cotoneaster","Cotoneaster dammeri",5.5,5.5]
["Bhutan Pine","Pinus wallichiana",40,40,40,40,40]
["Border Forsythia","Forsythia x intermedia ‘Spectabilis’",4.5,5.5]
["Box","Buxus sempervirens",5,10,15,20]
["Broad Buckler-fern","Dryopteris dilatata",5.5,5.5]
["Buddleia","Buddleia davidii",4.5,4.5]
["Californian Lilac","Ceanothus species",null,4.5,4.5]
["Cherry Laurel","Prunus laurocerasus",null,5,5]
["Cherry Laurel Otto Lukyens","Prunus laurocerasus'Otto Lukyens'",null,5,5]
["Chinese Juniper","Juniperus chinensis ‘Kaizuka’",null,5.5]
["Clematis","Clematis montana ‘Rubens’",4.5,4.5]
["Common Ivy","Hedera helix ‘Glacier’",5.5]
["Common Juniper","Juniperus communis",null,5.5]
["Common Lilac","Syringa vulgaris ‘Madame Lemoine’",null,5.5,5.5]
["Darwin's Barberry","Berberis darwinii",4.5,4.5]
["Date Palm","Phoenix canariensis",null,null,20]
["Deutzia","Deutzia ‘Mont Rose’",4.5,4.5]
["Douglas Fir","Pseudotsuga taxifolia",null,5,5]
["Dwarf Sweet Box","Sarcococca humilis",3.5,3.5]
["Early Dutch Honeysuckle","Lonicera periclymenum Begica",4.5,4.5]
["Eastern White Cedar","Thuja occidentalis cultivars",30,30,30,30,30]
["Elegant Deutzia","Deutzia x elegantissima ‘Rosealind’",4.5,4.5]
["Emerald & Gold","Euonymus fortunei",3.5]
["English Yew","Taxus baccata",5,10,10,20,30,30]
["Escallonia ‘Apple Blossom’","Escallonia ‘Apple Blossom’",null,4.5,4.5]
["European Larch","Larix decidua",3.5,3.5]
["False Spirea","Sorbaria sorbifolia",null,null,null,null,8,8]
["Flaky Juniper 'Blue Carpet'","Juniperus squamata ‘Blue Carpet’",4.5]
["Flaky Juniper 'Holger'","Juniperus squamata ‘Holger’",4.5]
["Flowering Currant","Ribes sanguineum",null,4.5,4.5]
["Fly Honeysuckle","Lonicera xylosteum",null,4.5,4.5,4.5]
["Franchet's Cotoneaster","Cotoneaster franchetii",5.5,5.5]
["Fuzzy Deutzia","Deutzia scabra ‘Flore Pleno’",null,5.5,5.5]
["Golden Box","Buxus sepervirens ‘Latifolia Maculata’",5,10,15,20]
["Golden Heather","Cassinia fulvida",null,4.5,4.5]
["Golden Privet","Ligustrum ovalifolium ‘Aureum’",4.5,4.5,4.5]
["Golden-twigged Dogwood","Cornus stolonifera",4.5,4.5]
["Green Honeysuckle (hedging)","Lonicera nitida ",3.5,3.5]
["Grey Owl Juniper","Juniperus virginiana ‘Grey Owl’",4.5]
["Hall's Japanese Honeysuckle","Lonicera japonica ‘Halliana’",4.5,4.5]
["Hebe","Hebe ‘Ettrick Shepherd’",null,5.5,5.5]
["Honeysuckle","Lonicera periclymenum",4.5,4.5]
["Honeysuckle 'Graham Thomas'","Lonicera periclymenum ‘Graham Thomas’",4.5,4.5]
["Irish Juniper","Juniperus communis ‘Hibernica’",4.5]
["Japanese Larch","Larix kaempferi",3.5,3.5]
["Juniper ‘Hetzii’","Juniperus x media ‘Hetzii’",4.5]
["Juniper ‘Old Gold’","Juniperus x media ‘Old Gold’",4.5]
["Juniper ‘Plumosa’","Juniperus x media ‘Plumosa’",4.5]
["Juniper ‘Sulphur Spray’","Juniperus x media ‘Sulphur Spray’",5,5,10,15,20,25]
["Juniper 'Pfitzeriana Aurea'","Juniperus x media ‘Pfitzeriana Aurea’",4.5]
["Koromiko","Hebe salicifolia",null,5.5,5.5]
["Late Dutch Honeysuckle","Lonicera periclymenum ‘Serotina’",4.5,4.5]
["Lawson's Cypress","Chamaecyparis lawsoniana",2.5,"Per ft","Up to","8ft Max"]
["Lawson's Cypress Cultivars","Chamaecyparis lawsoniana cultivars","£20.00 ","£20.00 ","£20.00 ","£20.00 "]
["Male Fern","Dryopteris filix-mas",5.5,5.5]
["Mexican Orange blossom","Choisya ternata",null,4.5,4.5]
["Mock Orange","Philadelphus ‘Belle Etoile’",4.5,4.5,4.5]
["Mock Orange Aureus","Philadelphus coronarius ‘Aureus’",4.5,4.5,4.5]
["Mock Orange Erectus","Philadelphus erectus",4.5,4.5,4.5]
["Monterey Pine","Pinus radiata",5,7.5,10]
["Oleaster 'Maculata'","Elaeagnus pungens ‘Maculata’",4.5,4.5]
["Oriental Thuja","Thuja orientalis cultivars",null,10.5,10.5,10.5]
["Perennial phlox","Phlox paniculata",null,4.5,4.5]
["Portugese Laurel","Prunus lusitanica",null,5,5]
["Rosea Tree Mallow","Lavatera olbia ‘Rosea’",null,null,4.5,4.5]
["Rosemary","Rosmarinus officinalis",3.5,3.5]
["Scots Pine","Pinus sylvestris",5,7.5,10]
["Silver Queen","Euonymus fortunei",3.5,3.5]
["Snowball Bush","Viburnum opulus ‘Sterile’",null,5.5,5.5]
["Spindle","Euonymus europaeus",null,4.5]
["Swiss Mountain Pine","Pinus mugo","£5.50 to £40.00"]
["Tamarisk-leaved savin","Juniperus sabina ‘Tamariscifolia’",4.5]
["Thunberg's Barberry","Berberis thunbergii ‘Atropurpurea’",4.5,4.5]
["Tree Cotoneaster","Cotoneaster frigidus",5.5,5.5]
["Tree Ivy","X Fatshedera lizei ‘Variegata’",5,5]
["Umbrella Pine","Sciadopitys verticillata",20,40]
["Van Houtte's Spiraea","Spiraea x vanhouttei",null,5.5,5.5]
["Variegated Box","Buxus sempervirens",5,10,15,20]
["Viburnum","Viburnum tinus",5.5,5.5,5.5]
["White Cedar","Thuja occidentalis ‘Rheingold’",null,30,30,30]
["White Dogwood","Cornus alba",4.5,4.5]
["Willow-leaved Cotoneaster","Cotoneaster ‘Skogholm’",5.5,5.5]
["Winter Flowering Honeysuckle","Lonicera fragrantissima",null,4.5,4.5,4.5]
["Winter Jasmine","Jasminum nudiflorum",5.5,5.5]

{"sheet":"Wild Flowers","index":6,"n_rows":44,"n_cols":6,"rows_kept":44,"cut":false,"hidden":false,"merged":[[0,0,0,5]]}
["Wildflowers"]
["Species","Latin","Pot Size","Price","Pot size","Price"]
["Agrimony","Agrimonia eupatoria","9cm",1.5,"1 litre",2]
["Angelica","Angelica archangelica","9cm",1.5,"1 litre",2]
["Betony","Betonica officinalis","9cm",1.5,"1 litre",2]
["Bluebell","Hyacinthoides non-scripta","9cm",1.5,"1 litre",2]
["Brooklime","Veronica beccabunga","9cm",1.5,"1 litre",2]
["Common Reed","Phragmites australis","1litre",2.5,"2 litre",3.5]
["Cowslip","Primula veris","9cm",1.5,"1 litre",2]
["Devil’s-bit Scabious","Succisa pratensis","9cm",1.5,"1 litre",2]
["Dog’s Mercury","Mercurialis perennis","9cm",1.5,"1 litre",2]
["Enchanter’s Nightshade","Circaea lutetiana","9cm",1.5,"1 litre",2]
["Field Scabious","Knautia arvensis","9cm",1.5,"1 litre",2]
["Foxglove","Digitalis purpurea","9cm",1.5,"1 litre",2]
["Giant Fescue","Festuca gigantea","9cm",1.5,"1 litre",2]
["Gorse","Ulex europaeus","9cm",3.5,"1 litre",4.5]
["Greater Pond Sedge","Carex riparia","1 litre",2.5,"2 litre",3.5]
["Greater Stitchwort","Stellaria holostea","9cm",1.5,"1 litre",2]
["Hedge Woundwort","Stachys sylvatica","9cm",1.5,"1 litre",2]
["Hemp Agrimony","Eupatorium cannabinum","9cm",1.5,"1 litre",2]
["Lesser Celandine","Ficaria verna","9cm",1.5,"1 litre",2]
["Marjorum","Origanum vulgare","9cm",1.5,"1 litre",2]
["Marsh Marigold","Caltha palustris","9cm",1.5,"1 litre",2]
["Meadow Cranesbill","Geranium pratense","9cm",1.5,"1 litre",2]
["Meadowsweet","Filipendula ulmaria","9cm",1.5,"1 litre",2]
["Musk Mallow","Malva moschata","9cm",1.5,"1 litre",2]
["Ox-eye Daisy","Leucanthemum vulgare","9cm",1.5,"1 litre",2]
["Oxslip","Primula elatior","9cm",1.5,"1 litre",2]
["Pendulous Sedge","Carex pendula","9cm",1.5,"1 litre",2]
["Primrose","Primula vulgaris","9cm",1.5,"1 litre",2]
["Purple Loosestrife","Lythrum salicaria","9cm",1.5,"1 litre",2]
["Ragged Robin","Lychnis flos-cuculi","9cm",1.5,"1 litre",2]
["Red Campion","Silene dioica","9cm",1.5,"1 litre",2]
["Small Scabious","Scabiosa columbaria","9cm",1.5,"1 litre",2]
["Small Teasel","Dipsacus pilosus","9cm",1.5,"1 litre",2]
["Teasel","Dipsacus fullonum","9cm",1.5,"1 litre",2]
["Tufted Hair-grass","Deschampsia cespitosa","9cm",1.5,"1 litre",2]
["Water Mint","Mentha aquatic","9cm",1.5,"1 litre",1.5]
["White Campion","Silene latifolia","9cm",1.5,"1 litre",2]
["Wild Garlic","Allium ursinum","9cm",1.5,"1 litre",2]
["Wood Avens","Geum urbanum","9cm",1.5,"1 litre",2]
["Wood Sedge","Carex sylvatica","9cm",1.5,"1 litre",2]
["Yarrow","Achillea millefolium","9cm",1.5,"1 litre",2]
["Yellow Flag","Iris pseudacorus","9cm",1.5,"1 litre",2]

{"sheet":"Apple","index":7,"n_rows":219,"n_cols":19,"rows_kept":219,"cut":false,"hidden":false,"merged":[[1,3,1,4],[1,5,1,16],[0,0,0,16]]}
["Apples"]
[null,null,null,"Prices",null,"Number Available at Height (ft)"]
["Variety","Rootstock","Form","<= 5ft",">= 6ft",2,3,4,5,6,7,8,9,10,11,12,15]
["Ashmead's Kernel","M26 (dwarfing)","Half Standard",30,40,null,null,null,1,1,null,null,null,null,null,null,null,null,{"$f":"A4 & \"  \" & IF(NOT(ISBLANK(B4)),LEFT(B4, FIND(\" \",B4)-1),\"\") & IF(NOT(ISBLANK(C4)),\"  \" & C4,\"\")","v":"Ashmead's Kernel  M26  Half Standard"}]
["Ashmead's Kernel","MM106 (semi-dwarfing)","Maiden",30,40,null,null,null,null,null,null,null,3,null,null,null,null,null,{"$f":"A5 & \"  \" & IF(NOT(ISBLANK(B5)),LEFT(B5, FIND(\" \",B5)-1),\"\") & IF(NOT(ISBLANK(C5)),\"  \" & C5,\"\")","v":"Ashmead's Kernel  MM106  Maiden"}]
["Ashmead's Kernel","MM106 (semi-dwarfing)","Bush",30,40,null,null,null,2,null,null,null,null,null,null,null,null,null,"Ashmead's Kernel  MM106  Bush"]
["Ballard Beauty","MM106 (semi-dwarfing)","Half Standard",30,40,null,null,null,null,null,null,null,3,null,null,null,null,null,"Ballard Beauty  MM106  Half Standard"]
["Ballard Beauty","MM106 (semi-dwarfing)","Standard",30,40,null,null,2,null,2,null,null,null,null,null,null,null,null,"Ballard Beauty  MM106  Standard"]
["Beauty of Bedford",null,null,null,null,null,null,null,null,null,null,null,null,null,null,null,null,null,"Beauty of Bedford  "]
["Bedford Pippin","MM106 (semi-dwarfing)","Maiden",30,40,null,null,null,null,2,null,null,null,null,null,null,null,null,"Bedford Pippin  MM106  Maiden"]
["Bedford Pippin","MM106 (semi-dwarfing)","Standard",30,40,null,null,null,null,1,null,null,null,null,null,null,null,null,"Bedford Pippin  MM106  Standard"]
["Bedfordshire Foundling",null,null,null,null,null,null,null,null,null,null,null,null,null,null,null,null,null,"Bedfordshire Foundling  "]
["Blenheim Orange","M26 (dwarfing)","Half Standard",30,40,null,null,null,null,1,1,null,null,null,null,null,null,null,"Blenheim Orange  M26  Half Standard"]
["Blenheim Orange","MM106 (semi-dwarfing)","Bush",30,40,null,null,null,null,2,null,null,null,null,null,null,null,null,"Blenheim Orange  MM106  Bush"]
["Blenheim Orange","MM106 (semi-dwarfing)","Maiden",30,40,null,null,null,null,2,null,null,null,null,null,null,null,null,"Blenheim Orange  MM106  Maiden"]
["Braeburn","MM106 (semi-dwarfing)","Maiden ",30,40,null,null,null,null,2,null,null,null,null,null,null,null,null,"Braeburn  MM106  Maiden "]
["Bramley's Seedling","M9 (dwarfing)","Knip ",30,40,null,null,null,null,null,7,null,null,null,null,null,null,null,"Bramley's Seedling  M9  Knip "]
["Bramley's Seedling","MM106 (semi-dwarfing)","Maiden",30,40,null,null,null,2,null,null,null,null,null,null,null,null,null,"Bramley's Seedling  MM106  Maiden"]
["Bramley 20","MM106 (semi-dwarfing)","Maiden",30,40,null,null,null,1,null,null,null,null,null,null,null,null,null,"Bramley 20  MM106  Maiden"]
["Bramley 20","M26 (dwarfing)","Maiden",30,40,null,null,null,1,null,null,null,null,null,null,null,null,null,"Bramley 20  M26  Maiden"]
["Charles Ross","MM106 (semi-dwarfing)","Bush",30,40,null,null,null,1,null,null,null,null,null,null,null,null,null,"Charles Ross  MM106  Bush"]
["Charles Ross","MM106 (semi-dwarfing)","Maiden",30,40,null,null,null,null,1,null,null,null,null,null,null,null,null,"Charles Ross  MM106  Maiden"]
["Cox's Orange Pippin (self fertile)","M26 (dwarfing)","Bush",30,40,null,null,null,null,null,2,null,null,null,null,null,null,null,"Cox's Orange Pippin (self fertile)  M26  Bush"]
["Cox's Orange Pippin (self fertile)","MM106 (semi-dwarfing)","Bush",30,40,null,null,null,null,3,null,null,null,null,null,null,null,null,"Cox's Orange Pippin (self fertile)  MM106  Bush"]
["Cox's Orange Pippin (self fertile)","MM106 (semi-dwarfing)","Maiden",30,40,null,null,null,null,null,2,null,null,null,null,null,null,null,"Cox's Orange Pippin (self fertile)  MM106  Maiden"]
["Cox's Orange Pippin","MM106 (semi-dwarfing)","Half Standard",30,40,null,null,null,null,null,null,null,null,1,null,null,null,null,"Cox's Orange Pippin  MM106  Half Standard"]
["D'Arcy Spice","MM106 (semi-dwarfing)","Maiden",30,40,null,null,null,1,4,null,null,null,null,null,null,null,null,"D'Arcy Spice  MM106  Maiden"]
["D'Arcy Spice","MM106 (semi-dwarfing)","Half Standard",30,40,null,null,null,null,null,1,null,null,null,null,null,null,null,"D'Arcy Spice  MM106  Half Standard"]
["Discovery","M26 (dwarfing)","Half Standard",30,40,null,null,null,1,null,null,null,null,null,null,null,null,null,"Discovery  M26  Half Standard"]
["Discovery","MM106 (semi-dwarfing)","Maiden",30,40,null,null,null,2,null,null,null,null,null,null,null,null,null,"Discovery  MM106  Maiden"]
["Desse de Buff","MM106 (semi-dwarfing)","Standard",30,40,null,null,null,null,null,null,null,null,2,null,null,null,null,"Desse de Buff  MM106  Standard"]
["Desse de Buff","MM106 (semi-dwarfing)","Half Standard",30,40,null,null,null,null,null,null,3,2,null,null,null,null,null,"Desse de Buff  MM106  Half Standard"]
["Duchess of Bedford","MM106 (semi-dwarfing)","Maiden",30,40,null,null,null,1,null,null,null,null,null,null,null,null,null,"Duchess of Bedford  MM106  Maiden"]
["Duchess of Bedford","MM106 (semi-dwarfing)","Half Standard",30,40,null,null,null,null,6,null,null,null,null,null,null,null,null,"Duchess of Bedford  MM106  Half Standard"]
["Duchess of Bedford","MM106 (semi-dwarfing)","Standard",30,40,null,null,null,null,null,null,null,null,2,null,null,null,null,"Duchess of Bedford  MM106  Standard"]
["Earl Cowper","MM106 (semi-dwarfing)","Half Standard",30,40,null,null,null,null,null,3,1,null,null,null,null,null,null,"Earl Cowper  MM106  Half Standard"]
["Earl Cowper","MM106 (semi-dwarfing)","Standard",30,40,null,null,null,null,null,null,null,null,2,null,1,null,null,"Earl Cowper  MM106  Standard"]
["Egremont Russet","MM106 (semi-dwarfing)","Half Standard",30,40,null,null,null,null,null,2,1,null,null,null,null,null,null,"Egremont Russet  MM106  Half Standard"]
["Ellison's Orange","M26 (semi-dwarfing)","Maiden",30,40,null,null,null,null,2,null,null,null,null,null,null,null,null,"Ellison's Orange  M26  Maiden"]
["Ellison's Orange","MM106 (semi-dwarfing)","Maiden",30,40,null,null,null,null,2,null,null,null,null,null,null,null,null,"Ellison's Orange  MM106  Maiden"]
["Ellison's Orange","MM106 (semi-dwarfing)","Half Standard",30,40,null,null,null,null,null,2,null,null,null,null,null,null,null,"Ellison's Orange  MM106  Half Standard"]
["George Carpenter","MM106 (semi-dwarfing)","Half Standard",30,40,null,null,null,null,null,null,2,1,null,null,null,null,null,"George Carpenter  MM106  Half Standard"]
["Hambling's Seedling","MM106 (semi-dwarfing)",null,30,40,null,null,null,2,2,null,null,null,null,null,null,null,null,"Hambling's Seedling  MM106"]
["Hertfordshire Russet","MM106 (semi-dwarfing)","Bush",30,40,null,null,null,2,null,null,null,null,null,null,null,null,null,"Hertfordshire Russet  MM106  Bush"]
["Hertfordshire Russet","MM106 (semi-dwarfing)","Maiden",30,40,null,null,null,null,2,null,null,null,null,null,null,null,null,"Hertfordshire Russet  MM106  Maiden"]
["Howgate Wonder","MM106 (semi-dwarfing)","Standard",30,40,null,null,null,null,null,null,null,2,4,null,null,null,null,"Howgate Wonder  MM106  Standard"]
["Irish Peach","MM106 (semi-dwarfing)","Standard",30,40,null,null,null,null,null,null,null,1,null,null,null,null,null,"Irish Peach  MM106  Standard"]
["Irish Peach","MM106 (semi-dwarfing)","Half Standard",30,40,null,null,null,null,null,null,2,null,null,null,null,null,null,"Irish Peach  MM106  Half Standard"]
["Kewick Codlin","MM106 (semi-dwarfing)","Maiden",30,40,null,null,null,null,2,null,null,null,null,null,null,null,null,"Kewick Codlin  MM106  Maiden"]
["King of the Pippins","MM106 (semi-dwarfing)","Bush",30,40,null,null,null,null,1,1,null,null,null,null,null,null,null,"King of the Pippins  MM106  Bush"]
["King of the Pippins","MM106 (semi-dwarfing)","Lead ",30,40,null,null,null,null,null,null,null,1,null,null,null,null,null,"King of the Pippins  MM106  Lead "]
["Lane's Prince Albert","MM106 (semi-dwarfing)","Half Standard",30,40,null,null,null,null,null,2,null,null,null,null,null,null,null,"Lane's Prince Albert  MM106  Half Standard"]
["Laxton's Advance","MM106 (semi-dwarfing)","Maiden",30,40,null,null,null,null,2,4,null,null,null,null,null,null,null,"Laxton's Advance  MM106  Maiden"]
["Laxton's Advance","MM106 (semi-dwarfing)","Half Standard",30,40,null,null,null,null,null,null,5,null,null,null,null,null,null,"Laxton's Advance  MM106  Half Standard"]
["Laxton's Advance","MM106 (semi-dwarfing)","Standard",30,40,null,null,null,null,null,null,5,3,2,null,null,null,null,"Laxton's Advance  MM106  Standard"]
["Laxton's Early Crimson","MM106 (semi-dwarfing)","Maiden",30,40,null,null,null,7,12,null,null,null,null,null,null,null,null,"Laxton's Early Crimson  MM106  Maiden"]
["Laxton's Early Crimson","MM106 (semi-dwarfing)","Half Standard",30,40,null,null,null,null,null,4,1,null,null,null,null,null,null,"Laxton's Early Crimson  MM106  Half Standard"]
["Laxton's Epicure","MM106 (semi-dwarfing)","Maiden",30,40,null,null,null,3,2,null,null,null,null,null,null,null,null,"Laxton's Epicure  MM106  Maiden"]
["Laxton's Epicure","MM106 (semi-dwarfing)","Half Standard",30,40,null,null,null,null,null,3,null,null,null,null,null,null,null,"Laxton's Epicure  MM106  Half Standard"]
["Laxton's Exquisite","MM106 (semi-dwarfing)","Maiden",30,40,null,null,null,null,2,null,null,null,null,null,null,null,null,"Laxton's Exquisite  MM106  Maiden"]
["Laxton's Exquisite","MM106 (semi-dwarfing)","Half Standard",30,40,null,null,null,null,null,1,3,null,null,null,null,null,null,"Laxton's Exquisite  MM106  Half Standard"]
["Laxton's Favourite","MM106 (semi-dwarfing)","Maiden",30,40,null,null,null,null,4,1,null,null,null,null,null,null,null,"Laxton's Favourite  MM106  Maiden"]
["Laxton's Favourite","MM106 (semi-dwarfing)","Standard",30,40,null,null,null,null,null,null,null,6,4,null,null,null,null,"Laxton's Favourite  MM106  Standard"]
["Laxton's Fortune","MM106 (semi-dwarfing)","Half Standard",30,40,null,null,null,null,null,1,null,null,null,null,null,null,null,"Laxton's Fortune  MM106  Half Standard"]
["Laxton's Fortune","MM106 (semi-dwarfing)","Standard",30,40,null,null,null,null,null,null,6,null,2,null,null,null,null,"Laxton's Fortune  MM106  Standard"]
["Laxton's Herald","MM106 (semi-dwarfing)","Half Standard",30,40,null,null,null,null,7,1,null,null,null,null,null,null,null,"Laxton's Herald  MM106  Half Standard"]
["Laxton's Herald","MM106 (semi-dwarfing)","Standard",30,40,null,null,null,null,null,null,3,null,1,null,null,null,null,"Laxton's Herald  MM106  Standard"]
["Laxton's Leader","MM106 (semi-dwarfing)","Half Standard",30,40,null,null,null,null,5,1,null,null,null,null,null,null,null,"Laxton's Leader  MM106  Half Standard"]
["Laxton's Leader","MM106 (semi-dwarfing)","Standard",30,40,null,null,null,null,null,null,null,3,3,null,null,null,null,{"$f":"A69 & \"  \" & IF(NOT(ISBLANK(B69)),LEFT(B69, FIND(\" \",B69)-1),\"\") & IF(NOT(ISBLANK(C69)),\"  \" & C69,\"\")","v":"Laxton's Leader  MM106  Standard"}]
["Laxton's Pearmain","MM106 (semi-dwarfing)","Half Standard",30,40,null,null,null,null,2,4,2,null,null,null,null,null,null,"Laxton's Pearmain  MM106  Half Standard"]
["Laxton's Pearmain","MM106 (semi-dwarfing)","Standard",30,40,null,null,null,null,null,null,null,null,1,null,null,null,null,"Laxton's Pearmain  MM106  Standard"]
["Laxton's Peerless","MM106 (semi-dwarfing)","Half Standard",30,40,null,null,null,null,4,null,null,null,null,null,null,null,null,"Laxton's Peerless  MM106  Half Standard"]
["Laxton's Peerless","MM106 (semi-dwarfing)","Standard",30,40,null,null,null,null,null,null,null,2,null,null,null,null,null,"Laxton's Peerless  MM106  Standard"]
["Laxton's Pioneer","MM106 (semi-dwarfing)","Half Standard",30,40,null,null,null,null,3,4,2,null,null,null,null,null,null,"Laxton's Pioneer  MM106  Half Standard"]
["Laxton's Pioneer","MM106 (semi-dwarfing)","Standard",30,40,null,null,null,null,null,null,null,null,1,null,3,2,null,"Laxton's Pioneer  MM106  Standard"]
["Laxton's Rearguard","MM106 (semi-dwarfing)","Maiden",30,40,null,null,null,3,null,null,null,null,null,null,null,null,null,"Laxton's Rearguard  MM106  Maiden"]
["Laxton's Rearguard","MM106 (semi-dwarfing)","Half Standard",30,40,null,null,null,null,2,null,1,null,null,null,null,null,null,"Laxton's Rearguard  MM106  Half Standard"]
["Laxton's Reward","MM106 (semi-dwarfing)","Half Standard",30,40,null,null,null,null,6,null,2,null,null,null,null,null,null,"Laxton's Reward  MM106  Half Standard"]
["Laxton's Royalty","MM106 (semi-dwarfing)","Half Standard",30,40,null,null,null,null,2,2,2,null,null,null,null,null,null,"Laxton's Royalty  MM106  Half Standard"]
["Laxton's Superb","MM106 (semi-dwarfing)","Half Standard",30,40,null,null,null,null,null,null,4,null,null,null,null,null,null,"Laxton's Superb  MM106  Half Standard"]
["Laxton's Superb","MM106 (semi-dwarfing)","Standard",30,40,null,null,null,null,null,null,null,null,2,null,1,5,null,"Laxton's Superb  MM106  Standard"]
["Laxton's Superb","M26 (drarwing)","Maiden",30,40,null,null,null,null,null,2,null,null,null,null,null,null,null,"Laxton's Superb  M26  Maiden"]
["Laxton's Triumph","MM106 (semi-dwarfing)","Maiden",30,40,null,null,null,null,3,null,null,null,null,null,null,null,null,"Laxton's Triumph  MM106  Maiden"]
["Laxton's Triumph","MM106 (semi-dwarfing)","Half Standard",30,40,null,null,null,null,null,4,null,null,null,null,null,null,null,"Laxton's Triumph  MM106  Half Standard"]
["Laxton's Triumph","MM106 (semi-dwarfing)","Standard",30,40,null,null,null,null,null,null,null,null,1,null,4,null,null,"Laxton's Triumph  MM106  Standard"]
["Laxton's Victory","MM106 (semi-dwarfing)","Maiden",30,40,null,null,null,2,null,null,null,null,null,null,null,null,null,"Laxton's Victory  MM106  Maiden"]
["Laxton's Victory","MM106 (semi-dwarfing)","Half Standard",30,40,null,null,null,null,4,2,null,null,null,null,null,null,null,"Laxton's Victory  MM106  Half Standard"]
["Lord Derby","MM106 (semi-dwarfing)","Maiden",30,40,null,null,null,null,2,null,null,null,null,null,null,null,null,"Lord Derby  MM106  Maiden"]
["Lord Lambourne","MM106 (semi-dwarfing)","Maiden",30,40,null,null,null,null,2,null,null,null,null,null,null,null,null,"Lord Lambourne  MM106  Maiden"]
["Lord Lambourne","MM106 (semi-dwarfing)","Half Standard",30,40,null,null,null,null,null,null,3,null,null,null,null,null,null,"Lord Lambourne  MM106  Half Standard"]
["Lord Lambourne","MM106 (semi-dwarfing)","Standard",30,40,null,null,null,null,null,null,null,1,1,null,null,null,null,"Lord Lambourne  MM106  Standard"]
["Lord Lambourne","MM106 (semi-dwarfing)","Bush",30,40,null,null,null,null,null,4,null,null,null,null,null,null,null,"Lord Lambourne  MM106  Bush"]
["Morgan's Sweet Cider","MM106 (semi-dwarfing)","Half Standard",30,40,null,null,null,null,null,null,2,null,null,null,null,null,null,"Morgan's Sweet Cider  MM106  Half Standard"]
["Newton Wonder","MM106 (semi-dwarfing)","Bush",30,40,null,null,null,null,2,null,null,null,null,null,null,null,null,"Newton Wonder  MM106  Bush"]
["Newton Wonder","MM106 (semi-dwarfing)","Maiden",30,40,null,null,null,null,2,null,null,null,null,null,null,null,null,"Newton Wonder  MM106  Maiden"]
["Newton Wonder","MM106 (semi-dwarfing)","Half Standard",30,40,null,null,null,null,null,null,2,null,null,null,null,null,null,"Newton Wonder  MM106  Half Standard"]
["Owen Thomas","MM106 (semi-dwarfing)","Maiden",30,40,null,null,null,null,2,null,null,null,null,null,null,null,null,"Owen Thomas  MM106  Maiden"]
["Owen Thomas","MM106 (semi-dwarfing)","Half Standard",30,40,null,null,null,null,null,2,1,1,null,null,null,null,null,"Owen Thomas  MM106  Half Standard"]
["Pam's Delight","MM106 (semi-dwarfing)","Maiden",30,40,null,null,null,null,10,null,null,null,null,null,null,null,null,"Pam's Delight  MM106  Maiden"]
["Queenby's Glory","MM106 (semi-dwarfing)","Half Standard",30,40,null,null,null,null,null,4,2,null,null,null,null,null,null,"Queenby's Glory  MM106  Half Standard"]
["Queenby's Glory","MM106 (semi-dwarfing)","Standard",30,40,null,null,null,null,null,null,null,null,1,null,1,null,null,"Queenby's Glory  MM106  Standard"]
["Reverend W. Wilks","M26 (dwarfing)","Bush",30,40,null,null,null,null,1,null,null,null,null,null,null,null,null,"Reverend W. Wilks  M26  Bush"]
["Reverend W. Wilks","MM106 (semi-dwarfing)","Maiden",30,40,null,null,null,null,2,null,null,null,null,null,null,null,null,"Reverend W. Wilks  MM106  Maiden"]
["Ribston Pippin","MM106 (semi-dwarfing)","Maiden",30,40,null,null,null,null,2,null,null,null,null,null,null,null,null,"Ribston Pippin  MM106  Maiden"]
["September Beauty","MM106 (semi-dwarfing)","Maiden",30,40,null,null,null,null,2,null,null,null,null,null,null,null,null,"September Beauty  MM106  Maiden"]
["September Beauty","MM106 (semi-dwarfing)","Half Standard",30,40,null,null,null,null,null,3,1,null,null,null,null,null,null,"September Beauty  MM106  Half Standard"]
["Tremletts Bitter Cider","MM106 (semi-dwarfing)","Half Standard",30,40,null,null,null,null,null,null,2,null,null,null,null,null,null,"Tremletts Bitter Cider  MM106  Half Standard"]
["Tydeman's Early Worcester","MM106 (semi-dwarfing)","Standard",30,40,null,null,null,null,null,null,null,null,1,null,null,null,null,"Tydeman's Early Worcester  MM106  Standard"]
["Tydeman's Late Orange","MM106 (semi-dwarfing)","Half Standard",30,40,null,null,null,null,null,null,1,null,null,null,null,null,null,"Tydeman's Late Orange  MM106  Half Standard"]
["Tydeman's Late Orange","MM106 (semi-dwarfing)","Standard",30,40,null,null,null,null,null,null,1,null,1,null,null,null,null,"Tydeman's Late Orange  MM106  Standard"]
["Unknown varieties in pot","MM106 (semi-dwarfing)",null,30,40,null,null,null,12,null,null,null,null,null,null,null,null,null,"Unknown varieties in pot  MM106"]
["Worcester Pearmain","M26 (dwarfing)","Bush",30,40,null,null,null,null,null,2,null,null,null,null,null,null,null,"Worcester Pearmain  M26  Bush"]
["Worcester Pearmain","MM106 (semi-dwarfing)","Half Standard",30,40,null,null,null,null,null,null,1,null,null,null,null,null,null,"Worcester Pearmain  MM106  Half Standard"]
["Worcester Pearmain","MM106 (semi-dwarfing)","Maiden",30,40,null,null,null,null,null,2,null,null,null,null,null,null,null,"Worcester Pearmain  MM106  Maiden"]
[null,null,null,null,null,null,null,null,null,null,null,null,null,null,null,null,null,null,"  "]
[null,null,null,null,null,null,null,null,null,null,null,null,null,null,null,null,null,null,"  "]
[null,null,null,null,null,null,null,null,null,null,null,null,null,null,null,null,null,null,"  "]
[null,null,null,null,null,null,null,null,null,null,null,null,null,null,null,null,null,null,"  "]
[null,null,null,null,null,null,null,null,null,null,null,null,null,null,null,null,null,null,"  "]
[null,null,null,null,null,null,null,null,null,null,null,null,null,null,null,null,null,null,"  "]
[null,null,null,null,null,null,null,null,null,null,null,null,null,null,null,null,null,null,"  "]
[null,null,null,null,null,null,null,null,null,null,null,null,null,null,null,null,null,null,"  "]
[null,null,null,null,null,null,null,null,null,null,null,null,null,null,null,null,null,null,"  "]
[null,null,null,null,null,null,null,null,null,null,null,null,null,null,null,null,null,null,"  "]
[null,null,null,null,null,null,null,null,null,null,null,null,null,null,null,null,null,null,"  "]
[null,null,null,null,null,null,null,null,null,null,null,null,null,null,null,null,null,null,"  "]
[null,null,null,null,null,null,null,null,null,null,null,null,null,null,null,null,null,null,"  "]
[null,null,null,null,null,null,null,null,null,null,null,null,null,null,null,null,null,null,"  "]
[null,null,null,null,null,null,null,null,null,null,null,null,null,null,null,null,null,null,"  "]
[null,null,null,null,null,null,null,null,null,null,null,null,null,null,null,null,null,null,"  "]
[null,null,null,null,null,null,null,null,null,null,null,null,null,null,null,null,null,null,"  "]
[null,null,null,null,null,null,null,null,null,null,null,null,null,null,null,null,null,null,"  "]
[null,null,null,null,null,null,null,null,null,null,null,null,null,null,null,null,null,null,{"$f":"A133 & \"  \" & IF(NOT(ISBLANK(B133)),LEFT(B133, FIND(\" \",B133)-1),\"\") & IF(NOT(ISBLANK(C133)),\"  \" & C133,\"\")","v":"  "}]
[null,null,null,null,null,null,null,null,null,null,null,null,null,null,null,null,null,null,"  "]
[null,null,null,null,null,null,null,null,null,null,null,null,null,null,null,null,null,null,"  "]
[null,null,null,null,null,null,null,null,null,null,null,null,null,null,null,null,null,null,"  "]
[null,null,null,null,null,null,null,null,null,null,null,null,null,null,null,null,null,null,"  "]
[null,null,null,null,null,null,null,null,null,null,null,null,null,null,null,null,null,null,"  "]
[null,null,null,null,null,null,null,null,null,null,null,null,null,null,null,null,null,null,"  "]
[null,null,null,null,null,null,null,null,null,null,null,null,null,null,null,null,null,null,"  "]
[null,null,null,null,null,null,null,null,null,null,null,null,null,null,null,null,null,null,"  "]
[null,null,null,null,null,null,null,null,null,null,null,null,null,null,null,null,null,null,"  "]
[null,null,null,null,null,null,null,null,null,null,null,null,null,null,null,null,null,null,"  "]
[null,null,null,null,null,null,null,null,null,null,null,null,null,null,null,null,null,null,"  "]
[null,null,null,null,null,null,null,null,null,null,null,null,null,null,null,null,null,null,"  "]
[null,null,null,null,null,null,null,null,null,null,null,null,null,null,null,null,null,null,"  "]
[null,null,null,null,null,null,null,null,null,null,null,null,null,null,null,null,null,null,"  "]
[null,null,null,null,null,null,null,null,null,null,null,null,null,null,null,null,null,null,"  "]
[null,null,null,null,null,null,null,null,null,null,null,null,null,null,null,null,null,null,"  "]
[null,null,null,null,null,null,null,null,null,null,null,null,null,null,null,null,null,null,"  "]
[null,null,null,null,null,null,null,null,null,null,null,null,null,null,null,null,null,null,"  "]
[null,null,null,null,null,null,null,null,null,null,null,null,null,null,null,null,null,null,"  "]
[null,null,null,null,null,null,null,null,null,null,null,null,null,null,null,null,null,null,"  "]
[null,null,null,null,null,null,null,null,null,null,null,null,null,null,null,null,null,null,"  "]
[null,null,null,null,null,null,null,null,null,null,null,null,null,null,null,null,null,null,"  "]
[null,null,null,null,null,null,null,null,null,null,null,null,null,null,null,null,null,null,"  "]
[null,null,null,null,null,null,null,null,null,null,null,null,null,null,null,null,null,null,"  "]
[null,null,null,null,null,null,null,null,null,null,null,null,null,null,null,null,null,null,"  "]
[null,null,null,null,null,null,null,null,null,null,null,null,null,null,null,null,null,null,"  "]
[null,null,null,null,null,null,null,null,null,null,null,null,null,null,null,null,null,null,"  "]
[null,null,null,null,null,null,null,null,null,null,null,null,null,null,null,null,null,null,"  "]
[null,null,null,null,null,null,null,null,null,null,null,null,null,null,null,null,null,null,"  "]
[null,null,null,null,null,null,null,null,null,null,null,null,null,null,null,null,null,null,"  "]
[null,null,null,null,null,null,null,null,null,null,null,null,null,null,null,null,null,null,"  "]
[null,null,null,null,null,null,null,null,null,null,null,null,null,null,null,null,null,null,"  "]
[null,null,null,null,null,null,null,null,null,null,null,null,null,null,null,null,null,null,"  "]
[null,null,null,null,null,null,null,null,null,null,null,null,null,null,null,null,null,null,"  "]
[null,null,null,null,null,null,null,null,null,null,null,null,null,null,null,null,null,null,"  "]
[null,null,null,null,null,null,null,null,null,null,null,null,null,null,null,null,null,null,"  "]
[null,null,null,null,null,null,null,null,null,null,null,null,null,null,null,null,null,null,"  "]
[null,null,null,null,null,null,null,null,null,null,null,null,null,null,null,null,null,null,"  "]
[null,null,null,null,null,null,null,null,null,null,null,null,null,null,null,null,null,null,"  "]
[null,null,null,null,null,null,null,null,null,null,null,null,null,null,null,null,null,null,"  "]
[null,null,null,null,null,null,null,null,null,null,null,null,null,null,null,null,null,null,"  "]
[null,null,null,null,null,null,null,null,null,null,null,null,null,null,null,null,null,null,"  "]
[null,null,null,null,null,null,null,null,null,null,null,null,null,null,null,null,null,null,"  "]
[null,null,null,null,null,null,null,null,null,null,null,null,null,null,null,null,null,null,"  "]
[null,null,null,null,null,null,null,null,null,null,null,null,null,null,null,null,null,null,"  "]
[null,null,null,null,null,null,null,null,null,null,null,null,null,null,null,null,null,null,"  "]
[null,null,null,null,null,null,null,null,null,null,null,null,null,null,null,null,null,null,"  "]
[null,null,null,null,null,null,null,null,null,null,null,null,null,null,null,null,null,null,"  "]
[null,null,null,null,null,null,null,null,null,null,null,null,null,null,null,null,null,null,"  "]
[null,null,null,null,null,null,null,null,null,null,null,null,null,null,null,null,null,null,"  "]
[null,null,null,null,null,null,null,null,null,null,null,null,null,null,null,null,null,null,"  "]
[null,null,null,null,null,null,null,null,null,null,null,null,null,null,null,null,null,null,"  "]
[null,null,null,null,null,null,null,null,null,null,null,null,null,null,null,null,null,null,"  "]
[null,null,null,null,null,null,null,null,null,null,null,null,null,null,null,null,null,null,"  "]
[null,null,null,null,null,null,null,null,null,null,null,null,null,null,null,null,null,null,"  "]
[null,null,null,null,null,null,null,null,null,null,null,null,null,null,null,null,null,null,"  "]
[null,null,null,null,null,null,null,null,null,null,null,null,null,null,null,null,null,null,"  "]
[null,null,null,null,null,null,null,null,null,null,null,null,null,null,null,null,null,null,"  "]
[null,null,null,null,null,null,null,null,null,null,null,null,null,null,null,null,null,null,"  "]
[null,null,null,null,null,null,null,null,null,null,null,null,null,null,null,null,null,null,"  "]
[null,null,null,null,null,null,null,null,null,null,null,null,null,null,null,null,null,null,"  "]
[null,null,null,null,null,null,null,null,null,null,null,null,null,null,null,null,null,null,"  "]
[null,null,null,null,null,null,null,null,null,null,null,null,null,null,null,null,null,null,"  "]
[null,null,null,null,null,null,null,null,null,null,null,null,null,null,null,null,null,null,{"$f":"A197 & \"  \" & IF(NOT(ISBLANK(B197)),LEFT(B197, FIND(\" \",B197)-1),\"\") & IF(NOT(ISBLANK(C197)),\"  \" & C197,\"\")","v":"  "}]
[null,null,null,null,null,null,null,null,null,null,null,null,null,null,null,null,null,null,"  "]
[null,null,null,null,null,null,null,null,null,null,null,null,null,null,null,null,null,null,"  "]
[null,null,null,null,null,null,null,null,null,null,null,null,null,null,null,null,null,null,"  "]
[null,null,null,null,null,null,null,null,null,null,null,null,null,null,null,null,null,null,"  "]
[null,null,null,null,null,null,null,null,null,null,null,null,null,null,null,null,null,null,"  "]
[null,null,null,null,null,null,null,null,null,null,null,null,null,null,null,null,null,null,"  "]
[null,null,null,null,null,null,null,null,null,null,null,null,null,null,null,null,null,null,"  "]
[null,null,null,null,null,null,null,null,null,null,null,null,null,null,null,null,null,null,"  "]
[null,null,null,null,null,null,null,null,null,null,null,null,null,null,null,null,null,null,"  "]
[null,null,null,null,null,null,null,null,null,null,null,null,null,null,null,null,null,null,"  "]
[null,null,null,null,null,null,null,null,null,null,null,null,null,null,null,null,null,null,"  "]
[null,null,null,null,null,null,null,null,null,null,null,null,null,null,null,null,null,null,"  "]
[null,null,null,null,null,null,null,null,null,null,null,null,null,null,null,null,null,null,"  "]
[null,null,null,null,null,null,null,null,null,null,null,null,null,null,null,null,null,null,"  "]
[null,null,null,null,null,null,null,null,null,null,null,null,null,null,null,null,null,null,"  "]
[null,null,null,null,null,null,null,null,null,null,null,null,null,null,null,null,null,null,"  "]
[null,null,null,null,null,null,null,null,null,null,null,null,null,null,null,null,null,null,"  "]
[null,null,null,null,null,null,null,null,null,null,null,null,null,null,null,null,null,null,"  "]
[null,null,null,null,null,null,null,null,null,null,null,null,null,null,null,null,null,null,"  "]
[null,null,null,null,null,null,null,null,null,null,null,null,null,null,null,null,null,null,"  "]
[null,null,null,null,null,null,null,null,null,null,null,null,null,null,null,null,null,null,"  "]
[null,null,null,null,null,null,null,null,null,null,null,null,null,null,null,null,null,null,"  "]

{"sheet":"Pear","index":8,"n_rows":40,"n_cols":19,"rows_kept":40,"cut":false,"hidden":false,"merged":[[1,4,1,15]]}
["Pears"]
[null,null,null,null,"Number Available at Height (ft)"]
["Variety","Rootstock","Form","Price",2,3,4,5,6,7,8,9,10,11,12,15]
["Beurre Bedford","Quince A  (semi-vigorous)",null,30,null,null,null,null,2,null,null,null,null,null,null,null,null,null,{"$f":"A4 & \"  \" & IF(NOT(ISBLANK(B4)),LEFT(B4, FIND(\" \",B4)-1),\"\") & IF(NOT(ISBLANK(C4)),\"  \" & C4,\"\")","v":"Beurre Bedford  Quince"}]
["Beurre Hardy","Quince A  (semi-vigorous)",null,40,null,null,null,null,null,1,1,null,null,null,null,null,null,null,"Beurre Hardy  Quince"]
["Beurre Superfin","Quince A  (semi-vigorous)",null,40,null,null,null,1,1,null,null,null,null,null,null,null,null,null,"Beurre Superfin  Quince"]
["Black Worcester","Kirchensaller  (very vigorous)",null,40,null,null,null,null,null,null,1,null,null,null,null,null,null,null,"Black Worcester  Kirchensaller"]
["Blakeney Red Perry","Kirchensaller  (very vigorous)",null,40,null,null,null,null,null,null,2,1,null,1,null,null,null,null,"Blakeney Red Perry  Kirchensaller"]
["Brandy Perry","Kirchensaller  (very vigorous)",null,40,null,null,null,null,null,null,1,4,null,null,null,null,null,null,"Brandy Perry  Kirchensaller"]
["Concorde","Kirchensaller  (very vigorous)",null,40,null,null,null,null,null,null,2,null,null,null,null,null,null,null,"Concorde  Kirchensaller"]
["Concorde","Quince A  (semi-vigorous)",null,40,null,null,null,null,2,null,null,null,null,null,null,null,null,null,"Concorde  Quince"]
["Conference","Quince A  (semi-vigorous)","Maiden",40,null,null,null,null,2,null,null,null,null,null,null,null,null,null,"Conference  Quince  Maiden"]
["Conference","Quince C","Bush",40,null,null,null,null,2,null,null,null,null,null,null,null,null,null,"Conference  Quince  Bush"]
["Doyenne du Comice","Quince A  (semi-vigorous)",null,40,null,null,null,null,null,null,2,null,null,null,null,null,null,null,"Doyenne du Comice  Quince"]
["Doyenne du Comice","Quince A  (semi-vigorous)","Bush",40,null,null,null,null,2,null,null,null,null,null,null,null,null,null,"Doyenne du Comice  Quince  Bush"]
["Doyenne du Comice","Quince Eline","Bush",40,null,null,null,null,2,null,null,null,null,null,null,null,null,null,"Doyenne du Comice  Quince  Bush"]
["Hellens Early Perry","Quince A  (semi-vigorous)","Maiden",40,null,null,null,2,null,null,null,null,null,null,null,null,null,null,"Hellens Early Perry  Quince  Maiden"]
["Hellens Early Perry","Quince A  (semi-vigorous)","Half Standard",40,null,null,null,null,null,1,1,null,null,null,null,null,null,null,"Hellens Early Perry  Quince  Half Standard"]
["Hendre Huffcap Perry","Kirchensaller  (very vigorous)","Half Standard",40,null,null,null,null,null,null,1,1,null,null,null,null,null,null,"Hendre Huffcap Perry  Kirchensaller  Half Standard"]
["Humbug","Quince A  (semi-vigorous)",null,30,null,null,null,null,2,null,null,null,null,null,null,null,null,null,"Humbug  Quince"]
["Josephine de Malines","Kirchensaller  (very vigorous)",null,40,null,null,null,null,null,null,1,null,null,null,null,null,null,null,"Josephine de Malines  Kirchensaller"]
["Laxton's Early Market","Quince A  (semi-vigorous)",null,30,null,null,null,3,2,null,null,null,null,null,null,null,null,null,"Laxton's Early Market  Quince"]
["Laxton's Foremost","Quince A  (semi-vigorous)",null,30,null,null,null,null,1,6,null,null,null,null,null,null,null,null,"Laxton's Foremost  Quince"]
["Laxton's Harvester","Quince A  (semi-vigorous)",null,30,null,null,null,null,2,3,null,null,null,null,null,null,null,null,"Laxton's Harvester  Quince"]
["Laxton's Record",null,null,null,null,null,null,null,null,null,null,null,null,null,null,null,null,null,"Laxton's Record  "]
["Laxton's Satisfaction","Quince A  (semi-vigorous)",null,30,null,null,3,3,1,null,null,null,null,null,null,null,null,null,"Laxton's Satisfaction  Quince"]
["Laxton's Superb","Quince A  (semi-vigorous)",null,30,null,null,null,4,3,2,null,null,null,null,null,null,null,null,"Laxton's Superb  Quince"]
["Laxton's Victor","Quince A  (semi-vigorous)",null,30,null,null,null,3,1,null,null,null,null,null,null,null,null,null,"Laxton's Victor  Quince"]
["Louise Bonne of Jersey","Quince A  (semi-vigorous)","Bush",40,null,null,null,null,null,5,null,null,null,null,null,null,null,null,"Louise Bonne of Jersey  Quince  Bush"]
["Louise Bonne of Jersey","Quince A  (semi-vigorous)",null,40,null,null,null,null,null,null,3,null,null,null,null,null,null,null,"Louise Bonne of Jersey  Quince"]
["Louise Bonne of Jersey","Quince A  (semi-vigorous)","Cordon",40,null,null,null,null,null,1,null,null,null,null,null,null,null,null,"Louise Bonne of Jersey  Quince  Cordon"]
["Louise Bonne of Jersey","Quince A  (semi-vigorous)","Maiden",40,null,null,null,null,null,2,null,null,null,null,null,null,null,null,"Louise Bonne of Jersey  Quince  Maiden"]
["Merton Pride","Quince A  (semi-vigorous)","Bush",40,null,null,null,null,1,null,null,null,null,null,null,null,null,null,"Merton Pride  Quince  Bush"]
["Merton Pride","Quince A  (semi-vigorous)",null,40,null,null,null,null,null,null,null,null,1,null,null,null,null,null,"Merton Pride  Quince"]
["Thorn Perry","Pyro Dwarf  (vigorous)",null,40,null,null,null,1,1,1,null,null,null,null,null,null,null,null,"Thorn Perry  Pyro"]
["Thorn Perry","Kirchensaller  (very vigorous)",null,40,null,null,null,null,null,null,2,null,null,null,null,null,null,null,"Thorn Perry  Kirchensaller"]
["Warden Pear","Quince A  (semi-vigorous)",null,30,5,null,null,null,null,null,null,null,null,null,null,null,null,null,{"$f":"A37 & \"  \" & IF(NOT(ISBLANK(B37)),LEFT(B37, FIND(\" \",B37)-1),\"\") & IF(NOT(ISBLANK(C37)),\"  \" & C37,\"\")","v":"Warden Pear  Quince"}]
["Williams' Bon Chretien","Quince A  (semi-vigorous)",null,40,null,null,null,null,2,null,null,null,null,null,null,null,null,null,{"$f":"A38 & \"  \" & IF(NOT(ISBLANK(B38)),LEFT(B38, FIND(\" \",B38)-1),\"\") & IF(NOT(ISBLANK(C38)),\"  \" & C38,\"\")","v":"Williams' Bon Chretien  Quince"}]
["Williams' Bon Chretien","Quince A  (semi-vigorous)","Bush",40,null,null,null,null,null,8,null,null,null,null,null,null,null,null,"Williams' Bon Chretien  Quince  Bush"]
["Williams' Bon Chretien","Quince Eline","Bush",40,null,null,null,null,null,2]

{"sheet":"Plum","index":9,"n_rows":32,"n_cols":19,"rows_kept":32,"cut":false,"hidden":false,"merged":[[1,5,1,16],[1,3,1,4]]}
["Plums"]
[null,null,null,"Price",null,"Number Available at Height (ft)"]
["Variety","Rootstock","Form","<=5ft",">5ft",2,3,4,5,6,7,8,9,10,11,12,15]
["Avalon","St. Julian A  (semi-vigorous)","Bush",40,null,null,null,null,null,null,null,null,2,null,null,null,null,null,{"$f":"A4 & \"  \" & IF(NOT(ISBLANK(B4)),LEFT(B4, FIND(\" \",B4)-1),\"\") & IF(NOT(ISBLANK(C4)),\"  \" & C4,\"\")","v":"Avalon  St.  Bush"}]
["Belle de Louvain","St. Julian A  (semi-vigorous)",null,40,null,null,null,null,null,null,1,1,1,1,null,null,null,null,{"$f":"A5 & \"  \" & IF(NOT(ISBLANK(B5)),LEFT(B5, FIND(\" \",B5)-1),\"\") & IF(NOT(ISBLANK(C5)),\"  \" & C5,\"\")","v":"Belle de Louvain  St."}]
["Belle de Louvain","VVA1  (dwarfing)",null,40,null,null,null,null,null,null,2,null,null,null,null,null,null,null,"Belle de Louvain  VVA1"]
["Blue Tit","St. Julian A  (semi-vigorous)",null,40,null,null,null,null,null,null,2,1,3,null,null,null,null,null,"Blue Tit  St."]
["Bountiful","St. Julian A  (semi-vigorous)",null,40,null,null,null,null,null,null,null,2,null,null,null,null,null,null,"Bountiful  St."]
["Curlew","St. Julian A  (semi-vigorous)",null,30,null,null,null,null,null,null,2,null,null,null,null,null,null,null,"Curlew  St."]
["Early Laxton","St. Julian A  (semi-vigorous)",null,40,40,null,null,null,null,null,1,2,2,1,null,null,null,null,"Early Laxton  St."]
["Guinevere","St. Julian A  (semi-vigorous)",null,40,40,null,null,null,null,null,null,1,2,null,null,null,null,null,"Guinevere  St."]
["Herman","St. Julian A  (semi-vigorous)",null,40,40,null,null,null,null,null,null,null,null,null,1,null,null,null,"Herman  St."]
["Heron","St. Julian A  (semi-vigorous)",null,40,40,null,null,null,null,null,null,null,null,null,1,1,null,null,"Heron  St."]
["Jubilee","St. Julian A  (semi-vigorous)",null,40,40,null,null,null,null,null,null,null,null,1,null,null,null,null,"Jubilee  St."]
["Laxton's Cropper","St. Julian A  (semi-vigorous)",null,40,40,null,null,null,null,null,null,null,null,1,null,null,null,null,"Laxton's Cropper  St."]
["Laxton's Delicious","St. Julian A  (semi-vigorous)",null,30,40,null,null,null,null,2,1,5,null,null,null,null,null,null,"Laxton's Delicious  St."]
["Laxton's Delight","St. Julian A  (semi-vigorous)",null,30,40,null,null,null,null,3,null,2,null,1,null,null,null,null,"Laxton's Delight  St."]
["Laxton's Goldfinch","St. Julian A  (semi-vigorous)",null,30,40,null,null,null,null,2,null,2,null,2,null,null,null,null,"Laxton's Goldfinch  St."]
["Laxton's Ideal","St. Julian A  (semi-vigorous)",null,30,40,null,null,null,null,4,null,1,null,1,null,null,null,null,"Laxton's Ideal  St."]
["Laxton's Supreme","St. Julian A  (semi-vigorous)",null,30,40,null,null,null,2,1,null,1,null,2,null,null,null,null,"Laxton's Supreme  St."]
["Marjorie's Seedling","St. Julian A  (semi-vigorous)","Bush Pixy",40,40,null,null,null,null,null,1,null,1,null,null,null,null,null,"Marjorie's Seedling  St.  Bush Pixy"]
["Marjorie's Seedling","St. Julian A  (semi-vigorous)",null,40,40,null,null,null,null,null,null,1,null,1,null,null,null,null,"Marjorie's Seedling  St."]
["Olympia",null,null,null,null,null,null,null,null,null,null,null,null,null,null,null,null,null,"Olympia  "]
["Opal","St. Julian A  (semi-vigorous)",null,40,40,null,null,null,null,null,null,1,null,null,null,null,null,null,"Opal  St."]
["Rivers Early Prolific","St. Julian A  (semi-vigorous)",null,40,40,null,null,null,null,null,null,1,null,1,null,null,null,null,"Rivers Early Prolific  St."]
["Utility","St. Julian A  (semi-vigorous)",null,40,40,null,null,null,null,null,null,null,1,2,null,null,null,null,"Utility  St."]
["Victoria","Brompton  (vigorous)",null,40,40,null,null,null,null,null,null,1,null,2,null,null,null,null,"Victoria  Brompton"]
["Victoria","VVA1  (dwarfing)","Maiden",40,40,null,null,null,null,null,null,2,null,null,null,null,null,null,"Victoria  VVA1  Maiden"]
["Victoria","St. Julian A  (semi-vigorous)",null,40,40,null,null,null,null,null,null,2,null,1,null,null,null,null,"Victoria  St."]
["Victoria","St. Julian A  (semi-vigorous)","Bush Pixy",40,40,null,null,null,null,null,1,null,1,null,null,null,null,null,"Victoria  St.  Bush Pixy"]
["Victoria","St. Julian A  (semi-vigorous)","Bush",40,40,null,null,null,null,null,null,1,null,null,null,null,null,null,"Victoria  St.  Bush"]
["Wild Plum",null,null,null,null,null,null,null,null,null,null,null,null,1,null,null,null,null,"Wild Plum  "]

{"sheet":"Other Fruit","index":10,"n_rows":67,"n_cols":19,"rows_kept":67,"cut":false,"hidden":false,"merged":[[58,0,58,16],[59,0,59,16],[43,0,43,16],[47,0,47,16],[48,0,48,16],[52,0,52,16],[53,0,53,16],[0,0,0,16],[11,0,11,16],[10,0,10,16],[19,0,19,16],[20,0,20,16],[1,5,1,16],[1,3,1,4],[12,5,12,16],[60,3,60,4],[12,3,12,4],[54,3,54,4],[60,5,60,16],[44,5,44,16],[21,5,21,16],[21,3,21,4],[31,5,31,16],[31,3,31,4],[54,5,54,16],[49,5,49,16],[49,3,49,4],[44,3,44,4],[29,0,29,16],[30,0,30,16],[42,0,42,16]]}
["Cherry"]
[null,null,null,"Price",null,"Number Available at Height (ft)"]
["Variety","Rootstock","Form",null,null,2,3,4,5,6,7,8,9,10,11,12,15]
["Celeste","Colt   (semi-vigorous)",null,40,null,null,null,null,null,null,null,null,null,null,null,null,null,null,{"$f":"A4 & \"  \" & IF(NOT(ISBLANK(B4)),LEFT(B4, FIND(\" \",B4)-2),\"\") & IF(NOT(ISBLANK(C4)),\"  \" & C4,\"\")","v":"Celeste  Colt "}]
["Early Rivers","St.Julian   (semi-vigorous)",null,40,null,null,null,null,null,null,null,null,null,4,null,null,null,null,{"$f":"A5 & \"  \" & IF(NOT(ISBLANK(B5)),LEFT(B5, FIND(\" \",B5)-1),\"\") & IF(NOT(ISBLANK(C5)),\"  \" & C5,\"\")","v":"Early Rivers  St.Julian  "}]
["Merton Glory","Colt   (semi-vigorous)",null,40,null,null,null,null,null,null,null,1,null,null,null,null,null,null,"Merton Glory  Colt  "]
["Morello","Colt   (semi-vigorous)",null,40,null,null,null,null,null,null,1,2,null,2,null,null,null,null,"Morello  Colt "]
["Stella","Colt   (semi-vigorous)",null,30,null,null,null,null,null,1,1,1,null,null,null,null,null,null,"Stella  Colt"]
["Stella","F12/1   (vigorous)",null,40,null,null,null,null,null,null,null,null,null,2,null,1,null,null,"Stella  F12/1 "]
["Sunburst","Colt   (semi-vigorous)","Standard",40,null,null,null,null,null,null,null,1,null,null,null,null,null,null,"Sunburst  Colt   Standard"]
[null,null,null,null,null,null,null,null,null,null,null,null,null,null,null,null,null,null,"  "]
["Gage",null,null,null,null,null,null,null,null,null,null,null,null,null,null,null,null,null,"Gage  "]
[null,null,null,"Price",null,"Number Available at Height (ft)",null,null,null,null,null,null,null,null,null,null,null,null,"  "]
["Variety",null,"Form",null,null,2,3,4,5,6,7,8,9,10,11,12,15]
["Cambridge","St.Julian   (semi-vigorous)",null,40,null,null,null,null,null,null,null,null,null,2,null,null,null,null,"Cambridge  St.Julian "]
["Denniston's Superb","St.Julian   (semi-vigorous)","Bush",40,null,null,null,null,null,null,null,null,null,1,null,null,null,null,"Denniston's Superb  St.Julian    Bush"]
["Laxton's Gage","St.Julian   (semi-vigorous)",null,40,null,null,null,null,null,2,2,1,null,1,null,null,null,null,"Laxton's Gage  St.Julian "]
["Old Green Gage","St.Julian   (semi-vigorous)","Standard",40,null,null,null,null,null,null,null,1,null,1,null,null,null,null,"Old Green Gage  St.Julian   Standard"]
["Willingham","St.Julian   (semi-vigorous)","Standard",40,null,null,null,null,null,null,null,1,null,1,null,null,null,null,"Willingham  St.Julian    Standard"]
[]
["Peach"]
[null,null,null,"Price",null,"Number Available at Height (ft)"]
["Variety",null,"Form",null,null,2,3,4,5,6,7,8,9,10,11,12,15]
["Bellegarde",null,null,null,null,null,null,null,null,null,null,null,null,null,null,null,null,null,{"$f":"A24 & \"  \" & IF(NOT(ISBLANK(B24)),LEFT(B24, FIND(\" \",B24)-1),\"\") & IF(NOT(ISBLANK(C24)),\"  \" & C24,\"\")","v":"Bellegarde  "}]
["Hale's Early",null,null,null,null,null,null,null,null,null,null,null,null,null,null,null,null,null,"Hale's Early  "]
["Opal","St.Julian   (semi-vigorous)",null,40,null,null,null,null,null,null,null,2,null,null,null,null,null,null,"Opal  St.Julian"]
["Peregrine",null,null,null,null,null,null,null,null,null,null,null,null,null,null,null,null,null,"Peregrine  "]
["Rochester","St.Julian   (semi-vigorous)","Bush",40,null,null,null,null,null,2,null,null,null,null,null,null,null,null,"Rochester  St.Julian    Bush"]
["Victoria",null,null,null,null,null,null,null,null,null,null,null,null,null,null,null,null,null,"Victoria  "]
[]
["Quince"]
[null,null,null,"Price",null,"Number Available at Height (ft)"]
["Variety",null,"Form",null,null,2,3,4,5,6,7,8,9,10,11,12,15]
["Champion","Quince A","Maiden",40,null,null,null,null,null,null,null,1,null,1,null,null,null,null,{"$f":"A34 & \"  \" & IF(NOT(ISBLANK(B34)),B34,\"\") & IF(NOT(ISBLANK(C34)),\"  \" & C34,\"\")","v":"Champion  Quince A  Maiden"}]
["Champion","Quince A","Standard",40,null,null,null,null,null,null,null,null,null,1,null,null,null,null,{"$f":"A35 & \"  \" & IF(NOT(ISBLANK(B35)),B35,\"\") & IF(NOT(ISBLANK(C35)),\"  \" & C35,\"\")","v":"Champion  Quince A  Standard"}]
["Meech's Prolific","Quince A","Bush",40,null,null,null,null,null,null,null,null,null,1,null,null,null,null,"Meech's Prolific  Quince A  Bush"]
["Meech's Prolific","Quince A","Standard",40,null,null,null,null,null,null,null,null,null,null,null,5,null,null,"Meech's Prolific  Quince A  Standard"]
["Serbian Gold","Quince A","Half Standard",40,null,null,null,null,null,null,null,3,null,2,null,null,null,null,"Serbian Gold  Quince A  Half Standard"]
["Vranja","Quince A","Maiden",40,null,null,null,null,null,null,null,1,null,1,null,null,null,null,"Vranja  Quince A  Maiden"]
["Vranja","Quince A","Bush",40,null,null,null,null,null,null,null,1,null,null,null,null,null,null,"Vranja  Quince A  Bush"]
["Vranja","Quince A",null,40,null,null,null,null,null,null,null,null,1,null,null,12,null,null,"Vranja  Quince A"]
["Vranja","Quince A","Standard",40,null,null,null,null,null,null,null,null,1,null,null,2,null,null,{"$f":"A42 & \"  \" & IF(NOT(ISBLANK(B42)),B42,\"\") & IF(NOT(ISBLANK(C42)),\"  \" & C42,\"\")","v":"Vranja  Quince A  Standard"}]
[]
["Almond"]
[null,null,null,"Price",null,"Number Available at Height (ft)"]
["Variety",null,"Form",null,null,2,3,4,5,6,7,8,9,10,11,12,15]
["Ingrid",null,null,40,null,null,null,null,null,null,null,null,null,null,null,null,null,null,{"$f":"A47 & \"  \" & IF(NOT(ISBLANK(B47)),B47,\"\") & IF(NOT(ISBLANK(C47)),\"  \" & C47,\"\")","v":"Ingrid  "}]
[]
["Mulberry"]
[null,null,null,"Price",null,"Number Available at Height (ft)"]
["Variety",null,"Form",null,null,2,3,4,5,6,7,8,9,10,11,12,15]
["Giant Mulberry",null,null,40,null,null,null,null,null,2,null,null,null,null,null,null,null,null,{"$f":"A52 & \"  \" & IF(NOT(ISBLANK(B52)),B52,\"\") & IF(NOT(ISBLANK(C52)),\"  \" & C52,\"\")","v":"Giant Mulberry  "}]
[]
["Fig"]
[null,null,null,"Price",null,"Number Available at Height (ft)"]
["Variety",null,"Form",null,null,2,3,4,5,6,7,8,9,10,11,12,15]
["Brown Turkey",null,null,null,null,null,null,null,null,null,null,null,null,null,null,null,null,null,{"$f":"A57 & \"  \" & IF(NOT(ISBLANK(B57)),B57,\"\") & IF(NOT(ISBLANK(C57)),\"  \" & C57,\"\")","v":"Brown Turkey  "}]
["Unknown",null,null,40,null,null,null,null,null,1,null,null,null,null,null,null,null,null,"Unknown  "]
[]
["Damson"]
[null,null,null,"Price",null,"Number Available at Height (ft)"]
["Variety",null,"Form",null,null,2,3,4,5,6,7,8,9,10,11,12,15]
["Merryweather","Brompton",null,40,null,null,null,null,null,null,null,null,null,null,null,1,null,null,{"$f":"A63 & \"  \" & IF(NOT(ISBLANK(B63)),B63,\"\") & IF(NOT(ISBLANK(C63)),\"  \" & C63,\"\")","v":"Merryweather  Brompton"}]
["Merryweather","St. Julian",null,40,null,null,null,null,null,null,null,4,null,null,null,null,null,null,"Merryweather  St. Julian"]
["Shepherd's Bullace","St. Julian",null,40,null,null,null,null,null,null,null,null,null,null,null,1,null,null,"Shepherd's Bullace  St. Julian"]
["Shropshire Prune","Brompton",null,40,null,null,null,null,null,null,null,null,null,null,null,1,null,null,"Shropshire Prune  Brompton"]
["Shropshire Prune","St. Julian  ",null,40,null,null,null,null,null,null,null,4,null,null,null,null,null,null,"Shropshire Prune  St. Julian  "]

{"sheet":"Misc Sales","index":11,"n_rows":10,"n_cols":19,"rows_kept":10,"cut":false,"hidden":false,"merged":[[3,0,4,0],[5,0,8,0],[1,2,1,4],[0,0,0,4]]}
["Miscellaneous Items"]
[null,null,"Price Each"]
[null,null,"1  to 99","100 to 999","999 +"]
["Canes","3' (90cm)",0.5,0.45,0.4,null,null,null,null,null,null,null,null,null,null,null,null,null,{"$f":"A4 & \"  \" & B4","v":"Canes  3' (90cm)"}]
[null,"4' (120cm)",0.5,0.45,0.4,null,null,null,null,null,null,null,null,null,null,null,null,null,{"$f":"A5 & \"  \" & B5","v":"  4' (120cm)"}]
["Tree Guards","Spiral ",0.55000000000000004,0.5,0.45,null,null,null,null,null,null,null,null,null,null,null,null,null,"Tree Guards  Spiral "]
[null,"2\" Tubular (5cm)",1.5,1.45,null,null,null,null,null,null,null,null,null,null,null,null,null,null,"  2\" Tubular (5cm)"]
[null,"3\" Tubular (8cm)",1.55,null,null,null,null,null,null,null,null,null,null,null,null,null,null,null,"  3\" Tubular (8cm)"]
[null,"4\" Tubular (10cm)",1.6,null,null,null,null,null,null,null,null,null,null,null,null,null,null,null,"  4\" Tubular (10cm)"]
["Tree Mats","1m Square Mypex",1,null,null,null,null,null,null,null,null,null,null,null,null,null,null,null,"Tree Mats  1m Square Mypex"]

{"sheet":"Christmas Trees","index":12,"n_rows":11,"n_cols":5,"rows_kept":11,"cut":false,"hidden":false,"merged":[[0,0,0,3],[10,0,10,3]]}
["Rooted Christmas Trees"]
["Common Name","Latin","Size","Price"]
["Albert's Spruce","Picea alba 'Albertiana Conica'","3ft to 4ft  @ £4.50/ft","£13.50 up to £18.00","https://www.google.co.uk/search?q=Pinus+omorika+christmas+tree&biw=1216&bih=636&tbm=isch&tbo=u&source=univ&sa=X&ved=0ahUKEwjm2Y7a_6PSAhWlJ8AKHWD1CD4QsAQIOA/"]
["Blue Colorado Spruce)","Pinus pungens 'Glauca'","3ft to 8ft @ £3.50/ft","£10.50 up to £28.00","https://www.google.co.uk/search?q=Pinus+pungens+%E2%80%98Glauca%E2%80%99+christmas+tree&biw=1216&bih=636&tbm=isch&tbo=u&source=univ&sa=X&ved=0ahUKEwiy4OKNgKTSAhWrJcAKHZ8fBBwQsAQIIA/"]
["Caucasian Fir","Abies nordmanniana","4 ft to 10ft @ £6.00/ft","£24.00 up to £60.00","https://www.google.co.uk/search?q=abies+nordmanniana+christmas+tree&biw=1216&bih=636&tbm=isch&tbo=u&source=univ&sa=X&sqi=2&ved=0ahUKEwioyZWh_6PSAhXlD8AKHUkjAu0QsAQILA/"]
["Colorado Spruce)","Pinus pungens","3ft to 8ft @ £3.50/ft","£13.50 up to £28.00","https://www.google.co.uk/search?q=Pinus+pungens+christmas+tree&biw=1216&bih=636&tbm=isch&tbo=u&source=univ&sa=X&ved=0ahUKEwjO7eL5_6PSAhVBKMAKHYJ5AscQsAQIJw/"]
["Fraser’s Fir","Abies fraseri","4ft to 10ft @ £5.50/ft","£22.00 up to £55.00","https://www.google.co.uk/search?q=abies+fraseri+christmas+tree&biw=1216&bih=636&tbm=isch&tbo=u&source=univ&sa=X&ved=0ahUKEwjD3YiR_qPSAhUiJsAKHVoFCdsQsAQIJw/"]
["Korean Fir","Abies koreana","4 ft to 10ft @ £6.00/ft","£24.00 up to £60.00","https://www.google.co.uk/search?q=abies+koreana+christmas+tree&biw=1216&bih=636&tbm=isch&tbo=u&source=univ&sa=X&sqi=2&ved=0ahUKEwjZgMOu_qPSAhWHAcAKHQDSBvwQsAQINQ/"]
["Norway Spruce","Picea abies","2ft to 5ft @ £3.50/ft","£7.50 up to £17.50","https://www.google.co.uk/search?q=picea+abies+christmas+tree&biw=1216&bih=636&tbm=isch&tbo=u&source=univ&sa=X&sqi=2&ved=0ahUKEwic4f-4_6PSAhUrIsAKHb2ZDfYQsAQIIA/"]
["Oriental Spruce)","Pinus orientalis","3ft to 8ft @ £3.50/ft","£10.50 up to £28.00","https://www.google.co.uk/search?q=Pinus+orientalis+christmas+tree&biw=1216&bih=636&tbm=isch&tbo=u&source=univ&sa=X&ved=0ahUKEwiGoMno_6PSAhWBDMAKHXUeBNwQsAQIIA/"]
["If trees are brought back living and in good condition, 50% of the price is refundable."]